bitfinex-derivatives/quotes_ETHF0:USTF0_20250428
["timestamp","ask_amount","ask_price","bid_price","bid_amount"]
[1745803315468,1.12798,1772.5,1772.4,3.802]
[1745803316149,1.12798,1772.5,1772.3,5.2338]
[1745803316753,1.12789,1772.7,1772.3,5.2338]
[1745803317054,1.12789,1772.7,1772.3,6.36187]
[1745803317254,1.12789,1772.7,1772.3,10.16387]
[1745803317553,3.2078,1772.7,1772.4,1.128]
[1745803317749,3.2078,1772.7,1772.3,9.0358]
[1745803317949,3.2078,1772.7,1772.5,1.12795]
[1745803318161,3.2078,1772.7,1772.5,3.802]
[1745803318359,1.12792,1772.6,1772.5,3.802]
[1745803318561,2.82762,1772.6,1772.5,3.802]
[1745803319257,6.6997,1772.6,1772.3,4.433]
[1745803319463,1.12811,1772.3,1772.2,3.2078]
[1745803319966,6.02802,1772.4,1771.9,5.2866]
[1745803320168,6.02802,1772.4,1771.9,4.432]
[1745803320169,1.1283,1772.0,1771.9,4.432]
[1745803320468,1.12849,1771.7,1771.6,4.431]
[1745803320662,3.2078,1772.3,1771.6,4.431]
[1745803320869,1.12827,1772.1,1771.8,1.12841]
[1745803321062,1.12807,1772.4,1772.1,1.1282]
[1745803321367,1.12815,1772.3,1772.1,4.431]
[1745803321669,4.9095,1772.5,1772.1,4.431]
[1745803321869,1.12807,1772.4,1772.1,5.55919]
[1745803322268,1.12807,1772.4,1772.1,5.55921]
[1745803322470,3.2078,1772.3,1772.1,4.431]
[1745803322666,1.12824,1772.1,1772.0,3.802]
[1745803322867,4.33604,1772.1,1772.0,3.802]
[1745803323267,1.1283,1772.0,1771.9,4.6555]
[1745803323561,1.1283,1772.0,1771.9,3.802]
[1745803323762,7.7325,1772.0,1771.9,0.57282437]
[1745803323960,8.533,1772.0,1771.9,4.37e-06]
[1745803324163,1.12862,1771.5,1771.4,1.5866]
[1745803324470,1.12889,1771.1,1771.0,4.392]
[1745803324774,0.4349571,1771.1,1771.0,4.392]
[1745803324965,0.4349571,1771.1,1771.0,5.52094]
[1745803325165,0.4349571,1771.1,1771.0,9.32294]
[1745803325568,0.4349571,1771.1,1771.0,12.53074]
[1745803326163,0.4349571,1771.1,1771.0,11.4018]
[1745803326468,0.43454044,1771.1,1771.0,12.5307]
[1745803326664,0.43454044,1771.1,1771.0,7.0098]
[1745803326871,9.77122044,1771.1,1771.0,2.53112]
[1745803327061,9.77122044,1771.1,1770.6,7.41972519]
[1745803327062,1.12913,1770.7,1770.6,7.41972519]
[1745803327373,1.56367044,1770.7,1770.6,1.6615]
[1745803327769,0.43454044,1770.7,1770.6,1.6615]
[1745803328071,1.56367044,1770.7,1770.6,1.6615]
[1745803328269,3.21547044,1770.7,1770.6,1.6615]
[1745803328468,1.12919,1770.6,1770.5,3.802]
[1745803328669,6.42333044,1770.6,1770.5,3.802]
[1745803329270,1.12926,1770.5,1770.3,1.6615]
[1745803329468,3.64234044,1770.6,1770.3,1.6615]
[1745803329469,1.12932,1770.4,1770.3,1.6615]
[1745803329669,1.12929,1770.5,1770.3,1.6615]
[1745803329869,1.55475894,1770.4,1770.3,1.6615]
[1745803330058,1.55475894,1770.4,1770.3,5.4635]
[1745803330059,0.42540764,1770.4,1770.3,5.4635]
[1745803330261,4.76252764,1770.4,1770.3,3.802]
[1745803330467,6.48472764,1770.4,1770.3,3.802]
[1745803330668,3.63320764,1770.4,1770.3,3.802]
[1745803330867,1.55472764,1770.4,1770.3,3.802]
[1745803331075,4.76252764,1770.4,1770.3,3.802]
[1745803331972,4.76163091,1770.4,1770.3,3.802]
[1745803332167,3.63231091,1770.4,1770.1,1.7459]
[1745803332358,3.63231091,1770.4,1769.8,7.6018]
[1745803332359,2.09391091,1770.3,1769.8,3.2078]
[1745803332563,1.12954,1770.1,1769.9,1.703]
[1745803333073,1.12958,1770.0,1769.9,1.703]
[1745803333266,1.12958,1770.0,1769.8,3.2078]
[1745803333467,1.6694,1769.9,1769.3,3.2078]
[1745803333771,3.2078,1769.7,1769.3,3.2078]
[1745803333969,3.2078,1769.7,1769.4,1.703]
[1745803334173,1.1299,1769.5,1769.4,5.505]
[1745803334871,1.1299,1769.5,1769.4,3.802]
[1745803335074,9.76024398,1769.5,1769.4,3.802]
[1745803335272,1.13006,1769.3,1769.1,1.703]
[1745803335472,1.13009,1769.2,1769.1,1.703]
[1745803335672,2.74289,1769.4,1769.1,1.703]
[1745803335871,3.2078,1769.7,1769.1,9.3068]
[1745803336076,3.2078,1769.7,1769.4,1.12993]
[1745803336272,4.33761,1769.7,1769.2,2.81336]
[1745803336571,1.13048,1768.6,1768.5,3.2078]
[1745803336874,3.2078,1768.9,1768.3,10.62752519]
[1745803337072,3.2078,1768.9,1768.5,3.2078]
[1745803337276,7.6038,1769.1,1768.5,3.802]
[1745803337579,1.13047,1768.6,1768.5,2.08089]
[1745803337873,1.13098,1767.8,1767.7,7.84987212]
[1745803338066,1.13098,1767.8,1767.7,6.20299212]
[1745803338067,8.14078,1767.8,1767.7,6.20299212]
[1745803338265,3.2078,1768.2,1767.7,39.74881212]
[1745803338469,3.2078,1768.0,1767.7,6.20299212]
[1745803338770,4.33878,1767.8,1767.7,6.20299212]
[1745803338971,4.33878,1767.8,1767.7,4.90241212]
[1745803339175,7.0098,1767.8,1767.7,4.90241212]
[1745803339377,3.802,1767.8,1767.7,4.90241212]
[1745803339575,3.802,1767.8,1767.7,38.44823212]
[1745803339779,3.25176101,1768.9,1767.7,38.44823212]
[1745803339780,3.2078,1768.7,1768.0,11.3087]
[1745803339980,3.2078,1768.9,1768.1,4.398]
[1745803340171,3.2078,1768.9,1768.3,11.3087]
[1745803340372,3.2078,1768.9,1768.2,3.2078]
[1745803340373,3.2078,1768.9,1768.4,10.9087]
[1745803340673,4.398,1768.9,1768.4,10.9087]
[1745803340878,1.13035,1768.8,1768.6,10.9087]
[1745803341067,3.2078,1769.1,1768.5,3.2078]
[1745803341267,3.2078,1768.6,1767.8,3.2078]
[1745803341475,1.13083,1768.1,1767.9,8.00462]
[1745803341678,1.13083,1768.1,1767.4,1.13119]
[1745803341679,3.2078,1768.0,1767.4,3.2078]
[1745803341877,3.2078,1768.0,1767.5,8.00462]
[1745803342176,3.2078,1767.8,1767.5,8.00462]
[1745803342376,3.2078,1768.0,1767.7,8.00462]
[1745803342571,4.833,1768.3,1767.5,17.89856]
[1745803342572,3.2078,1769.0,1768.2,8.00462]
[1745803342775,3.802,1769.1,1768.9,8.00462]
[1745803342978,3.802,1769.1,1769.0,8.00462]
[1745803343284,4.33791,1769.2,1769.0,8.00462]
[1745803343471,1.13015,1769.1,1769.0,17.89856]
[1745803343672,3.2078,1769.2,1769.1,8.00462]
[1745803343871,3.2078,1769.5,1769.0,8.00462]
[1745803344074,3.2078,1769.3,1768.9,3.2078]
[1745803344374,1.13018,1769.1,1768.9,11.21242]
[1745803344573,1.13018,1769.1,1768.9,29.11098]
[1745803344974,1.13022,1769.0,1768.9,3.2078]
[1745803345278,1.1304,1768.8,1768.3,4.834]
[1745803345472,1.13043,1768.7,1768.6,8.00462]
[1745803345678,1.13031,1768.9,1768.6,8.00462]
[1745803345871,1.13031,1768.9,1768.6,17.89856]
[1745803346067,3.2078,1769.1,1768.8,8.00462]
[1745803346280,3.2078,1769.1,1769.0,8.00462]
[1745803346574,3.2078,1769.3,1769.1,1.13012]
[1745803346782,3.2078,1769.5,1769.2,8.00462]
[1745803347072,3.2078,1769.5,1769.1,25.94036]
[1745803347274,1.12962,1770.0,1769.4,3.2078]
[1745803347476,8.71124,1770.5,1769.1,9.834]
[1745803347477,10.25087919,1770.7,1769.9,3.2078]
[1745803347676,9.12169919,1770.7,1770.3,3.2078]
[1745803347880,1.12939,1770.3,1770.2,8.00462]
[1745803348068,1.12939,1770.3,1770.2,3.2078]
[1745803348471,1.1298,1769.7,1769.5,3.2078]
[1745803348672,1.1298,1769.7,1769.6,8.00462]
[1745803349068,1.12975,1769.8,1769.6,13.57368082]
[1745803349389,3.2078,1770.1,1769.7,8.00462]
[1745803349679,7.65769,1770.2,1769.7,8.00462]
[1745803349680,1.12975,1769.8,1769.7,11.21242]
[1745803349867,1.12975,1769.8,1769.7,8.77686082]
[1745803350072,4.93175,1769.8,1769.7,3.2078]
[1745803350475,3.802,1769.8,1769.7,16.78148082]
[1745803350680,8.0418,1770.5,1769.7,22.91125082]
[1745803350879,1.12954,1770.1,1769.9,3.2078]
[1745803351083,8.0418,1770.5,1770.1,8.00462]
[1745803351283,1.12958,1770.0,1769.9,5.56906082]
[1745803351577,10.86508,1770.5,1769.9,5.56906082]
[1745803351769,0.42013872,1770.4,1770.1,3.2078]
[1745803351976,5.068,1770.9,1769.9,5.56906082]
[1745803351977,1.12924,1770.6,1770.4,8.00462]
[1745803352178,1.12926,1770.5,1770.3,3.2078]
[1745803352376,1.55038177,1770.4,1770.3,5.56906082]
[1745803352570,1.55041378,1770.4,1770.3,13.57368082]
[1745803352778,5.42103328,1770.4,1769.6,3.2078]
[1745803353080,3.2078,1770.1,1769.6,8.77686082]
[1745803353270,3.802,1770.4,1770.1,8.00462]
[1745803353586,0.42170323,1770.3,1770.0,8.00462]
[1745803353780,1.55119323,1770.2,1770.0,13.57368082]
[1745803353983,7.0098,1770.4,1770.1,8.00462]
[1745803354283,0.42166461,1770.3,1769.7,3.2078]
[1745803354487,1.12956,1770.1,1770.0,8.00462]
[1745803354682,1.12964,1769.9,1769.7,8.77686082]
[1745803354980,1.12955,1770.1,1769.9,8.00462]
[1745803355280,3.2078,1770.3,1769.7,9.90663082]
[1745803355281,1.12964,1769.9,1769.7,8.77686082]
[1745803355483,1.55174579,1769.8,1769.7,13.57368082]
[1745803356185,0.42204579,1769.8,1769.7,13.57368082]
[1745803356385,0.42259568,1769.8,1769.7,13.57368082]
[1745803357185,0.42259568,1769.8,1769.7,19.70345082]
[1745803357386,0.42259568,1769.8,1769.7,14.13439]
[1745803357577,3.2078,1770.3,1769.9,1.1296]
[1745803357882,3.2078,1770.3,1770.1,8.00462]
[1745803358082,1.12945,1770.2,1769.9,0.34801027]
[1745803358479,1.12951,1770.2,1769.9,0.34801027]
[1745803358681,1.12952,1770.1,1769.9,0.34801027]
[1745803359080,1.12948,1770.2,1769.9,1.47765027]
[1745803359279,1.12938,1770.4,1770.1,3.2078]
[1745803359484,1.12936,1770.4,1770.1,3.2078]
[1745803359683,1.12923,1770.6,1770.3,3.2078]
[1745803359882,9.0958,1770.9,1770.3,3.2078]
[1745803360184,11.91844,1770.9,1770.3,3.2078]
[1745803360380,1.12932,1770.4,1770.3,3.2078]
[1745803360984,3.2078,1770.7,1770.3,3.2078]
[1745803361175,3.2078,1770.5,1770.3,1.12936]
[1745803361380,3.2078,1770.7,1770.4,1.12927]
[1745803361581,1.12929,1770.5,1770.3,3.2078]
[1745803362091,1.12932,1770.4,1770.3,3.2078]
[1745803362290,1.12943,1770.3,1770.1,5.066]
[1745803363890,3.2078,1770.5,1770.1,5.066]
[1745803364086,1.12932,1770.4,1770.1,5.066]
[1745803364390,1.12945,1770.2,1770.1,5.066]
[1745803364776,3.2078,1770.5,1770.1,5.066]
[1745803365177,1.12935,1770.4,1770.1,5.066]
[1745803365490,4.33706,1770.5,1770.2,4.33724]
[1745803365690,3.2078,1770.5,1770.2,3.2078]
[1745803365982,4.33709,1770.5,1770.2,3.2078]
[1745803366187,4.33709,1770.5,1770.2,8.13921]
[1745803366888,3.2078,1770.5,1770.2,8.13921]
[1745803367091,4.33708,1770.5,1770.2,3.2078]
[1745803367287,4.33708,1770.5,1770.2,4.33723]
[1745803367688,3.2078,1770.8,1770.5,1.12922]
[1745803367888,4.33687,1770.8,1770.5,1.12921]
[1745803368778,1.12912,1770.8,1770.4,4.33708]
[1745803368990,1.12912,1770.8,1770.5,1.12926]
[1745803369386,3.2078,1771.0,1770.6,1.12919]
[1745803369590,1.12903,1770.9,1770.6,1.12919]
[1745803369790,1.12904,1770.9,1770.6,1.12919]
[1745803369993,4.3368,1771.0,1770.7,1.12912]
[1745803370190,3.2078,1771.0,1770.5,8.2728]
[1745803370391,3.2078,1771.0,1770.6,1.12914]
[1745803370693,4.33677,1771.0,1770.7,1.12912]
[1745803371085,3.2078,1771.3,1770.7,3.2078]
[1745803371284,3.2078,1771.3,1770.9,4.33676]
[1745803371585,1.12884,1771.2,1770.9,4.33676]
[1745803371786,4.33656,1771.3,1771.0,1.1289]
[1745803372480,1.12881,1771.2,1770.9,4.33675]
[1745803372684,1.12865,1771.5,1771.2,1.12877]
[1745803373086,3.2078,1771.7,1771.1,9.40163]
[1745803373087,1.12869,1771.4,1771.1,9.40163]
[1745803373293,1.12866,1771.5,1771.1,9.40163]
[1745803373588,6.02936,1771.5,1770.9,3.2078]
[1745803373785,1.12885,1771.2,1770.9,3.2078]
[1745803373982,1.12885,1771.2,1770.9,4.33678]
[1745803374182,7.0098,1771.5,1770.9,4.33678]
[1745803374384,1.12879,1771.3,1770.9,4.33678]
[1745803374586,1.12879,1771.3,1770.4,2.82324]
[1745803374587,2.82204,1771.2,1770.3,3.2078]
[1745803374793,1.12932,1770.4,1770.3,3.2078]
[1745803374982,6.03056,1770.8,1770.3,3.2078]
[1745803375188,7.0098,1770.8,1770.3,3.2078]
[1745803375399,7.0098,1770.8,1770.3,4.33715]
[1745803375582,1.12923,1770.6,1770.4,0.8506]
[1745803375893,1.12926,1770.5,1770.4,0.8506]
[1745803376988,4.93124,1770.6,1770.4,0.8506]
[1745803377791,4.93124,1770.6,1770.2,1.34794]
[1745803377792,7.0098,1770.6,1770.2,0.2185]
[1745803378294,1.1293,1770.5,1770.2,0.2185]
[1745803378493,1.12939,1770.3,1770.2,0.2185]
[1745803379194,3.2078,1770.6,1770.2,0.2185]
[1745803379391,1.12915,1770.7,1770.3,5.16916]
[1745803379785,3.2078,1770.8,1770.3,5.16916]
[1745803379994,1.1292,1770.6,1770.3,5.16916]
[1745803380389,1.1292,1770.6,1770.3,4.0398]
[1745803380694,1.12923,1770.6,1770.4,0.8099]
[1745803380995,1.12958,1770.0,1769.9,3.2078]
[1745803381194,2.82342,1770.4,1768.9,63.386]
[1745803381195,1.12986,1769.6,1769.5,3.2078]
[1745803381396,1.1298,1769.7,1769.5,3.2078]
[1745803381693,1.12976,1769.8,1769.5,4.33769]
[1745803381890,9.0958,1770.3,1769.7,3.2078]
[1745803382093,1.1297,1769.8,1769.7,3.2078]
[1745803382291,1.12977,1769.7,1769.6,0.0682]
[1745803382499,3.2078,1770.1,1769.6,0.0682]
[1745803382794,1.12977,1769.7,1769.6,0.0682]
[1745803383197,3.802,1769.7,1769.6,0.0682]
[1745803383398,3.802,1769.7,1769.6,1.7225]
[1745803383602,3.802,1769.7,1769.6,2.85233]
[1745803383796,3.802,1769.7,1769.6,1.7225]
[1745803384199,1.12977,1769.7,1769.6,1.7225]
[1745803384404,1.12974,1769.8,1769.6,1.7225]
[1745803384707,3.2078,1769.9,1769.6,2.85232]
[1745803385001,1.12956,1770.1,1769.7,4.044]
[1745803385193,3.2078,1770.2,1769.8,0.7894]
[1745803385399,1.12958,1770.0,1769.9,1.6947]
[1745803386300,4.93158,1770.0,1769.9,1.6947]
[1745803387001,3.802,1770.0,1769.9,1.6947]
[1745803387194,3.2078,1770.2,1769.9,2.82434]
[1745803387397,7.29735935,1770.8,1770.4,1.12932]
[1745803387699,1.12915,1770.7,1770.5,5.7182]
[1745803387896,8.42646935,1770.8,1770.5,6.5915]
[1745803388099,7.29735935,1770.8,1770.5,6.5915]
[1745803388299,7.29735935,1770.8,1770.5,7.72075]
[1745803388506,7.29735935,1770.9,1770.5,6.5915]
[1745803388699,8.42639935,1770.9,1770.5,7.72073]
[1745803388996,8.42639935,1770.9,1770.5,6.5915]
[1745803389203,7.29735935,1770.9,1770.7,4.33691]
[1745803389398,7.29735935,1770.9,1770.8,1.6362]
[1745803390605,7.29735935,1770.9,1770.8,2.76527]
[1745803391103,7.29735935,1770.9,1770.8,1.6362]
[1745803391304,7.29735935,1770.9,1770.8,2.76527]
[1745803392303,3.2078,1771.1,1771.0,1.12894]
[1745803392499,3.2078,1771.1,1770.9,1.12896]
[1745803392703,3.2078,1771.4,1771.0,5.6798]
[1745803392903,1.12884,1771.2,1771.0,2.472]
[1745803393102,1.12884,1771.2,1771.0,3.60093]
[1745803393606,1.12878,1771.3,1771.0,6.80873]
[1745803394002,7.29735935,1771.5,1771.2,1.12881]
[1745803394202,7.29735935,1771.5,1771.3,1.6415]
[1745803394510,1.12868,1771.4,1771.3,1.6415]
[1745803394701,7.29735935,1771.5,1771.3,1.6415]
[1745803394896,7.29735935,1771.5,1771.4,1.12868]
[1745803395305,7.29735935,1771.5,1771.3,2.7702]
[1745803395507,1.12868,1771.4,1771.3,1.6415]
[1745803396307,4.93068,1771.4,1771.3,1.6415]
[1745803398606,1.129,1770.9,1770.8,3.2078]
[1745803398808,3.2078,1771.2,1770.8,3.2078]
[1745803399107,7.0098,1771.2,1770.9,1.6877]
[1745803399411,1.12889,1771.1,1770.9,1.6877]
[1745803400211,4.93089,1771.1,1770.9,1.6877]
[1745803400412,1.12894,1771.0,1770.9,1.6877]
[1745803400608,4.93092,1771.1,1770.9,1.6877]
[1745803400913,1.12894,1771.0,1770.9,1.6877]
[1745803401207,4.33674,1771.0,1770.9,1.6877]
[1745803401599,3.802,1771.1,1771.0,1.12894]
[1745803401804,10.25020919,1771.7,1771.2,1.12876]
[1745803402003,10.25020919,1771.7,1771.4,3.2078]
[1745803402605,9.12169919,1771.7,1771.4,9.33648]
[1745803402807,12.07436902,1772.0,1771.5,1.1286]
[1745803403114,1.12837,1771.9,1771.7,3.2078]
[1745803403503,13.78468902,1772.0,1771.7,3.2078]
[1745803403702,12.07437902,1772.0,1771.7,3.2078]
[1745803403906,1.12843,1771.8,1771.7,3.2078]
[1745803404112,4.93043,1771.8,1771.7,3.2078]
[1745803404706,3.802,1771.8,1771.7,3.2078]
[1745803404913,4.93043,1771.8,1771.7,3.2078]
[1745803405715,3.802,1771.8,1771.7,3.2078]
[1745803407015,3.802,1771.8,1771.7,14.24829]
[1745803407016,2.78379001,1771.8,1771.7,14.24829]
[1745803407216,7.41432066,1771.9,1771.8,1.12843]
[1745803407417,7.41432066,1771.9,1771.8,3.60823]
[1745803407617,7.41432066,1771.9,1771.8,8.60823]
[1745803408509,6.10272066,1771.9,1771.8,8.60823]
[1745803408913,6.6e-07,1771.9,1771.8,8.60823]
[1745803409118,6.6e-07,1771.9,1771.8,12.41023]
[1745803409315,9.26790082,1772.1,1772.0,1.1283]
[1745803409815,9.26790082,1772.1,1772.0,6.1283]
[1745803410222,9.26790082,1772.1,1772.0,9.9303]
[1745803410613,5.55385983,1772.2,1772.1,1.12818]
[1745803410822,5.55385983,1772.2,1772.1,9.24698]
[1745803411113,5.55385983,1772.2,1772.1,14.24698]
[1745803412221,5.55385983,1772.2,1772.1,16.70288]
[1745803414420,1.12793,1772.6,1772.4,1.12804]
[1745803414622,1.12793,1772.6,1772.5,9.6874]
[1745803414921,1.12793,1772.6,1772.5,4.9334]
[1745803415121,1.12793,1772.6,1772.5,9.6874]
[1745803416121,1.12789,1772.7,1772.5,10.81538]
[1745803416313,1.7064,1772.8,1772.5,9.6874]
[1745803416314,2.83424,1772.8,1772.5,9.6874]
[1745803416514,2.83424,1772.8,1772.7,3.2078]
[1745803417222,6.63624,1772.8,1772.7,3.2078]
[1745803418322,5.5084,1772.8,1772.7,4.33566]
[1745803419017,3.802,1772.8,1772.7,4.33566]
[1745803419223,0.84,1773.2,1772.7,11.02742]
[1745803419423,0.84,1773.2,1773.1,3.2078]
[1745803419625,2.4486,1773.2,1773.1,3.2078]
[1745803419819,1.6086,1773.2,1773.1,4.3354]
[1745803420120,3.802,1773.2,1773.1,5.99346]
[1745803420920,3.802,1773.2,1773.1,4.8659]
[1745803421427,3.802,1773.2,1773.1,5.9935]
[1745803422019,3.802,1773.2,1773.1,6.7947]
[1745803422220,2.87355,1773.4,1773.2,1.12754]
[1745803422419,1.12747,1773.3,1773.2,4.8628]
[1745803423327,3.802,1773.3,1773.2,4.8628]
[1745803423529,4.92947,1773.3,1773.2,3.2078]
[1745803423725,6.67557,1773.3,1773.2,3.2078]
[1745803424431,6.67557,1773.3,1773.2,4.8628]
[1745803425623,6.67557,1773.3,1773.0,5.88061]
[1745803425624,10.5481,1773.3,1773.0,7.9608]
[1745803425831,1.1276,1773.1,1773.0,4.753]
[1745803426030,1.1276,1773.1,1773.0,3.2078]
[1745803426229,6.5345,1773.1,1773.0,3.2078]
[1745803426432,1.12769,1773.0,1772.8,9.5677]
[1745803426634,2.73259,1773.0,1772.8,9.5677]
[1745803426927,6.6049,1773.0,1772.6,3.2078]
[1745803427134,1.12786,1772.7,1772.6,3.2078]
[1745803428235,4.92986,1772.7,1772.6,3.2078]
[1745803429235,1.12805,1772.4,1772.3,4.751]
[1745803429534,1.12802,1772.5,1772.3,4.751]
[1745803429831,1.12794,1772.6,1772.2,5.87912]
[1745803430034,1.12799,1772.5,1772.3,1.7418]
[1745803430228,1.6825,1772.4,1772.3,1.7418]
[1745803430632,3.802,1772.6,1772.4,1.12801]
[1745803430828,3.802,1772.6,1772.5,1.7418]
[1745803431036,3.802,1772.6,1772.5,4.9496]
[1745803431229,3.62268,1772.7,1772.5,4.9496]
[1745803431532,1.99952,1772.8,1772.6,6.3273]
[1745803431735,2.607,1772.8,1772.6,6.3273]
[1745803431923,3.73481,1772.8,1772.6,6.3273]
[1745803432237,1.7353,1772.7,1772.6,6.3273]
[1745803432536,1.99951,1772.8,1772.6,6.3273]
[1745803432742,1.99951,1772.8,1772.7,1.5753]
[1745803433032,1.12786,1772.7,1772.6,4.752]
[1745803433236,2.86316,1772.7,1772.6,4.752]
[1745803434242,6.66516,1772.7,1772.6,4.752]
[1745803436039,6.66516,1772.7,1772.6,6.3695]
[1745803436632,3.802,1772.7,1772.6,11.3695]
[1745803436837,3.802,1772.7,1772.6,12.49742]
[1745803437144,1.12784,1772.8,1772.6,7.49742]
[1745803437344,1.12784,1772.8,1772.7,4.8332]
[1745803438345,1.12784,1772.8,1772.7,3.2078]
[1745803438546,1.98154,1772.8,1772.7,3.2078]
[1745803439146,5.78354,1772.8,1772.7,3.2078]
[1745803439550,5.78354,1772.8,1772.7,4.752]
[1745803440152,1.12789,1772.7,1772.5,4.61777]
[1745803440447,2.81519,1772.7,1772.6,1.7222]
[1745803441148,6.61719,1772.7,1772.6,1.7222]
[1745803441349,3.802,1772.7,1772.6,1.7222]
[1745803441550,4.92986,1772.7,1772.6,1.7222]
[1745803442045,1.12792,1772.6,1772.5,4.3287]
[1745803442246,2.81522,1772.6,1772.5,3.4898]
[1745803442546,3.61622,1772.6,1772.5,0.282]
[1745803442847,1.12812,1772.3,1772.1,5.8792]
[1745803443039,1.12817,1772.2,1772.1,6.4382]
[1745803443243,1.6435,1772.2,1772.1,6.4382]
[1745803443451,1.12816,1772.3,1772.1,7.56644]
[1745803443649,1.12816,1772.3,1772.2,4.895]
[1745803443842,1.12805,1772.4,1772.2,6.02313]
[1745803444043,3.802,1772.9,1772.3,1.6872]
[1745803444245,1.12776,1772.9,1772.7,4.33564]
[1745803444545,1.12769,1773.0,1772.8,6.2902]
[1745803444750,1.12769,1773.0,1772.9,4.895]
[1745803445150,4.92969,1773.0,1772.9,4.895]
[1745803445548,1.63109,1773.1,1772.9,3.2078]
[1745803445747,1.1275,1773.3,1773.0,6.02261]
[1745803445955,1.98633,1773.4,1773.2,3.2078]
[1745803446153,1.98633,1773.4,1773.3,1.7484]
[1745803446847,0.8589,1773.4,1773.3,1.7484]
[1745803447056,1.98631,1773.4,1773.3,1.7484]
[1745803447259,5.78831,1773.4,1773.3,1.7484]
[1745803447748,1.1276,1773.1,1773.0,3.2078]
[1745803447955,1.1276,1773.1,1773.0,1.7484]
[1745803448151,1.12773,1772.9,1772.8,3.2078]
[1745803448348,1.12789,1772.7,1772.5,7.8108]
[1745803448549,2.81933,1772.9,1772.3,4.063]
[1745803448748,2.83888,1772.6,1772.4,1.7484]
[1745803449051,0.823,1772.5,1772.4,1.7484]
[1745803449642,1.12808,1772.4,1772.1,4.868]
[1745803449844,1.5858,1772.3,1772.2,1.5789]
[1745803450054,2.71391,1772.3,1772.1,3.2078]
[1745803450259,6.51591,1772.3,1772.1,4.7867]
[1745803450851,5.3878,1772.3,1772.1,1.5789]
[1745803451052,6.51591,1772.3,1772.2,1.5789]
[1745803452052,2.82044,1772.2,1771.5,3.2078]
[1745803452255,1.12846,1771.8,1771.5,4.898]
[1745803452453,1.12846,1771.8,1771.6,1.6902]
[1745803453161,4.93046,1771.8,1771.6,1.6902]
[1745803454260,3.802,1771.8,1771.6,1.6902]
[1745803454459,3.802,1771.8,1771.6,2.5544]
[1745803454760,3.802,1771.8,1771.6,1.6902]
[1745803454761,1.12849,1771.7,1771.6,1.6902]
[1745803455157,4.93049,1771.7,1771.6,1.6902]
[1745803455359,3.802,1771.7,1771.6,1.6902]
[1745803455773,4.93049,1771.7,1771.6,1.6902]
[1745803455952,3.802,1771.7,1771.6,1.6902]
[1745803456153,1.12844,1771.8,1771.6,1.6902]
[1745803457057,5.55385983,1771.9,1771.7,3.2078]
[1745803457250,5.55385983,1771.9,1771.8,2.72233]
[1745803457447,5.55385983,1771.9,1771.8,7.72233]
[1745803457860,5.55385983,1771.9,1771.8,2.72233]
[1745803458160,6.68222983,1771.9,1771.8,1.5939]
[1745803458352,5.55385983,1771.9,1771.8,2.72233]
[1745803458663,1.99655983,1771.9,1771.8,7.72233]
[1745803459156,1.99655983,1771.9,1771.8,11.52433]
[1745803460664,1.12807,1772.4,1772.1,1.12818]
[1745803460863,1.12807,1772.4,1772.2,9.4623]
[1745803461058,1.12811,1772.3,1772.2,4.605]
[1745803461359,1.12811,1772.3,1771.8,3.802]
[1745803461360,1.12836,1772.0,1771.9,4.605]
[1745803461864,1.12829,1772.1,1771.9,4.605]
[1745803462062,0.8516,1772.3,1772.0,3.2078]
[1745803462360,1.12819,1772.2,1772.0,4.33607]
[1745803462755,1.97974,1772.3,1772.1,1.12824]
[1745803463053,1.12814,1772.3,1772.1,2.79764]
[1745803463667,5.5813,1772.5,1772.1,1.6694]
[1745803463863,1.12817,1772.2,1772.1,1.6694]
[1745803464364,1.5785,1772.4,1772.1,2.7976]
[1745803464365,1.12812,1772.3,1772.1,2.7976]
[1745803464558,1.12812,1772.3,1772.2,3.2078]
[1745803464758,1.5785,1772.4,1772.2,3.2078]
[1745803464759,2.70659,1772.4,1772.2,4.33597]
[1745803465059,1.92301,1772.5,1772.3,1.12811]
[1745803465257,0.795,1772.5,1772.3,5.73307]
[1745803465454,0.795,1772.5,1772.4,1.12805]
[1745803465662,8.1967028,1772.7,1772.4,3.2078]
[1745803465860,1.12794,1772.6,1772.4,4.33581]
[1745803466262,1.12792,1772.6,1772.4,4.3358]
[1745803466458,1.12798,1772.5,1772.4,3.2078]
[1745803466664,1.12803,1772.5,1772.3,5.7331]
[1745803467065,7.4017028,1772.7,1772.6,1.12792]
[1745803467364,1.1278,1772.8,1772.6,1.12792]
[1745803467567,1.1278,1772.8,1772.7,4.604]
[1745803467961,1.6398,1772.9,1772.5,3.2078]
[1745803468169,1.12792,1772.6,1772.4,5.732]
[1745803468554,3.62669,1772.7,1772.5,1.12796]
[1745803468758,2.4988,1772.7,1772.6,1.12792]
[1745803468965,3.62666,1772.7,1772.4,7.8118]
[1745803469165,7.4287,1772.7,1772.5,1.12798]
[1745803469368,1.12792,1772.6,1772.4,8.93983]
[1745803469664,1.12798,1772.5,1772.4,4.604]
[1745803470171,4.92998,1772.5,1772.4,4.604]
[1745803473561,8.64043805,1772.5,1772.4,4.604]
[1745803475175,1.12811,1772.3,1772.2,3.2078]
[1745803475771,3.66081,1772.3,1772.2,3.2078]
[1745803476171,7.46281,1772.3,1772.2,3.2078]
[1745803476968,11.17326805,1772.3,1772.2,3.2078]